[Event "*** Titled Tuesday Blitz"]
[Site "Chess.com"]
[Date "2020.10.20"]
[Round "7"]
[White "ShapkinAnatoliy"]
[Black "ChainsOfFantasia"]
[Result "0-1"]
[WhiteElo "2639"]
[BlackElo "2506"]
[TimeControl "180+1"]
[EndTime "11:20:09 PDT"]
[Termination "ChainsOfFantasia won by resignation"]

1. d4 {[%clk 0:03:00.9]} 1... Nf6 {[%clk 0:02:58.9]} 2. c4 {[%clk 0:03:00.9]}
2... e6 {[%clk 0:02:59.1]} 3. g3 {[%clk 0:03:00.8]} 3... d5 {[%clk 0:02:59.9]}
4. Nf3 {[%clk 0:03:00.7]} 4... Be7 {[%clk 0:03:00.5]} 5. Bg2 {[%clk 0:03:01.1]}
5... O-O {[%clk 0:03:01]} 6. O-O {[%clk 0:03:01.6]} 6... dxc4 {[%clk 0:03:01.5]}
7. Qc2 {[%clk 0:03:01.8]} 7... a6 {[%clk 0:03:02]} 8. a4 {[%clk 0:03:01.9]} 8...
c5 {[%clk 0:03:01.9]} 9. dxc5 {[%clk 0:02:57.1]} 9... Bxc5 {[%clk 0:03:02.8]}
10. Qxc4 {[%clk 0:02:55.3]} 10... b6 {[%clk 0:03:02.3]} 11. Ne5 {[%clk 0:02:49]}
11... Ra7 {[%clk 0:03:01.9]} 12. Nc3 {[%clk 0:02:48]} 12... Bb7 {[%clk
0:02:45.5]} 13. Bg5 {[%clk 0:02:19.9]} 13... Qc7 {[%clk 0:02:38.7]} 14. Bxf6
{[%clk 0:02:10.3]} 14... gxf6 {[%clk 0:02:39.6]} 15. Qg4+ {[%clk 0:02:09.1]}
15... Kh8 {[%clk 0:02:38.8]} 16. Nd3 {[%clk 0:02:05.1]} 16... Bxg2 {[%clk
0:02:33]} 17. Kxg2 {[%clk 0:02:06]} 17... f5 {[%clk 0:02:17.4]} 18. Qh4 {[%clk
0:01:57.1]} 18... Be7 {[%clk 0:02:16.9]} 19. Qd4+ {[%clk 0:01:55.1]} 19... Kg8
{[%clk 0:02:05.6]} 20. Rac1 {[%clk 0:01:55]} 20... Rd8 {[%clk 0:02:00.3]} 21.
Nd5 {[%clk 0:01:38.7]} 21... Qb7 {[%clk 0:01:47.3]} 22. Qxb6 {[%clk 0:00:32.7]}
22... Rxd5 {[%clk 0:01:33]} 23. Qxb7 {[%clk 0:00:29.5]} 23... Rxb7 {[%clk
0:01:33.9]} 24. Rc8+ {[%clk 0:00:28.3]} 24... Kg7 {[%clk 0:01:33.3]} 25. Rfc1
{[%clk 0:00:28.7]} 25... Nd7 {[%clk 0:01:27.4]} 26. Ra8 {[%clk 0:00:26.1]} 26...
a5 {[%clk 0:01:22.4]} 27. Rcc8 {[%clk 0:00:24.4]} 27... Nf6 {[%clk 0:01:17.9]}
28. Ra6 {[%clk 0:00:16.2]} 28... Bb4 {[%clk 0:01:00.4]} 29. Raa8 {[%clk
0:00:14.3]} 29... e5 {[%clk 0:00:49.9]} 30. h3 {[%clk 0:00:12.3]} 30... Bd6
{[%clk 0:00:43.6]} 31. Rc6 {[%clk 0:00:08.2]} 31... e4 {[%clk 0:00:39.8]} 32.
Nc1 {[%clk 0:00:07]} 32... Rxb2 {[%clk 0:00:34.9]} 33. Raa6 {[%clk 0:00:03.7]}
33... Be5 {[%clk 0:00:34]} 34. g4 {[%clk 0:00:02]} 34... fxg4 {[%clk 0:00:32.9]}
35. hxg4 {[%clk 0:00:02.9]} 35... Nxg4 {[%clk 0:00:32.3]} 36. Rab6 {[%clk
0:00:03.4]} 36... Rxb6 {[%clk 0:00:31.3]} 37. Rxb6 {[%clk 0:00:04.3]} 37... Nxf2
{[%clk 0:00:29.2]} 38. Nb3 {[%clk 0:00:03.2]} 38... Ng4 {[%clk 0:00:26.9]} 39.
Ra6 {[%clk 0:00:03.3]} 39... Ne3+ {[%clk 0:00:24.2]} 40. Kf2 {[%clk 0:00:03.2]}
40... Nc4 {[%clk 0:00:24.5]} 41. Kg2 {[%clk 0:00:02.6]} 41... h5 {[%clk
0:00:23.6]} 42. Rc6 {[%clk 0:00:02.7]} 42... Nd2 {[%clk 0:00:22.1]} 43. Ra6
{[%clk 0:00:02.4]} 43... Nxb3 {[%clk 0:00:21.5]} 0-1

[Event "*** Titled Tuesday Blitz"]
[Site "Chess.com"]
[Date "2020.10.20"]
[Round "7"]
[White "ViktoriyaTarasova"]
[Black "JoliyRoger"]
[Result "1-0"]
[WhiteElo "2270"]
[BlackElo "2430"]
[TimeControl "180+1"]
[EndTime "11:20:11 PDT"]
[Termination "ViktoriyaTarasova won on time"]

1. d4 {[%clk 0:03:00.9]} 1... Nf6 {[%clk 0:02:59.5]} 2. c4 {[%clk 0:02:59.5]}
2... e6 {[%clk 0:02:59.8]} 3. Nc3 {[%clk 0:02:58.7]} 3... Bb4 {[%clk 0:03:00.3]}
4. Nf3 {[%clk 0:02:55.5]} 4... c5 {[%clk 0:02:59.9]} 5. g3 {[%clk 0:02:54.1]}
5... cxd4 {[%clk 0:02:57.9]} 6. Nxd4 {[%clk 0:02:53.9]} 6... Nc6 {[%clk
0:02:58]} 7. Bg2 {[%clk 0:02:35.7]} 7... Qb6 {[%clk 0:02:52.1]} 8. Nb5 {[%clk
0:02:22.8]} 8... O-O {[%clk 0:02:40.9]} 9. O-O {[%clk 0:02:20.9]} 9... Ne5
{[%clk 0:02:25.5]} 10. Qb3 {[%clk 0:02:08.2]} 10... Bxc3 {[%clk 0:02:01.5]} 11.
Qxc3 {[%clk 0:02:01.1]} 11... Nc6 {[%clk 0:00:44.2]} 12. e4 {[%clk 0:01:55.9]}
12... a6 {[%clk 0:00:29.4]} 13. Be3 {[%clk 0:01:55.4]} 13... Qd8 {[%clk
0:00:28.1]} 14. Nd6 {[%clk 0:01:54.2]} 14... Ne8 {[%clk 0:00:21.5]} 15. e5
{[%clk 0:01:47.1]} 15... Nxd6 {[%clk 0:00:21.2]} 16. exd6 {[%clk 0:01:46.3]}
16... f6 {[%clk 0:00:20.1]} 17. c5 {[%clk 0:01:45]} 17... Qe8 {[%clk 0:00:11.8]}
18. b4 {[%clk 0:01:41.7]} 18... Qg6 {[%clk 0:00:10.2]} 19. a4 {[%clk 0:01:38.8]}
19... Ne5 {[%clk 0:00:09.6]} 20. h3 {[%clk 0:01:36.3]} 20... h6 {[%clk
0:00:09.2]} 21. b5 {[%clk 0:01:34.3]} 21... axb5 {[%clk 0:00:09.2]} 22. axb5
{[%clk 0:01:33.9]} 22... Rxa1 {[%clk 0:00:09.8]} 23. Rxa1 {[%clk 0:01:34]} 23...
h5 {[%clk 0:00:09.4]} 24. Bd4 {[%clk 0:01:16.5]} 24... h4 {[%clk 0:00:08.9]} 25.
Bxe5 {[%clk 0:01:11.9]} 25... fxe5 {[%clk 0:00:08.3]} 26. Qxe5 {[%clk
0:01:11.6]} 26... hxg3 {[%clk 0:00:08.2]} 27. fxg3 {[%clk 0:01:04.9]} 27... Qc2
{[%clk 0:00:04.9]} 28. Rf1 {[%clk 0:00:40.9]} 28... Rxf1+ {[%clk 0:00:03]} 29.
Bxf1 {[%clk 0:00:41.1]} 29... Qc1 {[%clk 0:00:02.5]} 30. h4 {[%clk 0:00:18.2]}
30... Qb1 {[%clk 0:00:03]} 31. Qg5 {[%clk 0:00:15.2]} 31... Kh7 {[%clk
0:00:02.2]} 32. Qh5+ {[%clk 0:00:14.5]} 32... Kg8 {[%clk 0:00:02.3]} 33. Qe8+
{[%clk 0:00:15.1]} 33... Kh7 {[%clk 0:00:02.7]} 34. Qxc8 {[%clk 0:00:15]} 34...
Qe4 {[%clk 0:00:02.4]} 35. Qd8 {[%clk 0:00:11.2]} 35... Qe3+ {[%clk 0:00:02.7]}
36. Kh2 {[%clk 0:00:10.8]} 36... Qxc5 {[%clk 0:00:01.1]} 37. Qxd7 {[%clk
0:00:09.5]} 37... Qf2+ {[%clk 0:00:01.7]} 38. Bg2 {[%clk 0:00:09.9]} 38... e5
{[%clk 0:00:02.1]} 39. Qxb7 {[%clk 0:00:09.8]} 1-0

[Event "*** Titled Tuesday Blitz"]
[Site "Chess.com"]
[Date "2020.10.20"]
[Round "7"]
[White "Morshynska"]
[Black "AurumO"]
[Result "0-1"]
[WhiteElo "2227"]
[BlackElo "1978"]
[TimeControl "180+1"]
[EndTime "11:20:11 PDT"]
[Termination "AurumO won on time"]

1. Nf3 {[%clk 0:03:00.9]} 1... d5 {[%clk 0:02:59.8]} 2. g3 {[%clk 0:03:01.4]}
2... Nf6 {[%clk 0:03:00.1]} 3. Bg2 {[%clk 0:03:01.6]} 3... c5 {[%clk 0:03:00]}
4. O-O {[%clk 0:03:02.1]} 4... Nc6 {[%clk 0:03:00.7]} 5. d4 {[%clk 0:03:02.3]}
5... e6 {[%clk 0:03:00.8]} 6. c4 {[%clk 0:03:02]} 6... Be7 {[%clk 0:03:00.9]} 7.
Nc3 {[%clk 0:03:00.5]} 7... O-O {[%clk 0:03:00.8]} 8. cxd5 {[%clk 0:02:52.3]}
8... exd5 {[%clk 0:03:00.6]} 9. Bg5 {[%clk 0:02:50.1]} 9... Be6 {[%clk
0:03:00.3]} 10. Rc1 {[%clk 0:02:42]} 10... h6 {[%clk 0:02:56.2]} 11. Bxf6 {[%clk
0:02:35.7]} 11... Bxf6 {[%clk 0:02:57.1]} 12. dxc5 {[%clk 0:02:35]} 12... d4
{[%clk 0:02:49.8]} 13. Na4 {[%clk 0:02:28.4]} 13... Bd5 {[%clk 0:02:42.3]} 14.
b3 {[%clk 0:02:23.3]} 14... Re8 {[%clk 0:02:37.9]} 15. Re1 {[%clk 0:02:07.2]}
15... Qe7 {[%clk 0:02:35.2]} 16. Nd2 {[%clk 0:01:59.8]} 16... Bxg2 {[%clk
0:02:31.7]} 17. Kxg2 {[%clk 0:02:00.7]} 17... Rad8 {[%clk 0:02:31.5]} 18. a3
{[%clk 0:01:37.8]} 18... a5 {[%clk 0:02:18.2]} 19. Nb6 {[%clk 0:01:22.9]} 19...
h5 {[%clk 0:02:08.7]} 20. h4 {[%clk 0:01:21.3]} 20... d3 {[%clk 0:01:42.4]} 21.
exd3 {[%clk 0:01:16.5]} 21... Qxe1 {[%clk 0:01:42.9]} 22. Qxe1 {[%clk
0:01:17.4]} 22... Rxe1 {[%clk 0:01:43.2]} 23. Rxe1 {[%clk 0:01:17.9]} 23... Rxd3
{[%clk 0:01:43.1]} 24. Re2 {[%clk 0:01:06.8]} 24... Bd4 {[%clk 0:01:36.1]} 25.
Na4 {[%clk 0:00:54.6]} 25... g6 {[%clk 0:01:05.4]} 26. Kf1 {[%clk 0:00:45.7]}
26... Kg7 {[%clk 0:01:02.8]} 27. Ke1 {[%clk 0:00:44.3]} 27... Bc3 {[%clk
0:01:03.1]} 28. Nxc3 {[%clk 0:00:42.4]} 28... Rxc3 {[%clk 0:01:04]} 29. Re8
{[%clk 0:00:32.9]} 29... Rxc5 {[%clk 0:00:52.8]} 30. Rc8 {[%clk 0:00:32.4]}
30... Rc1+ {[%clk 0:00:44.7]} 31. Ke2 {[%clk 0:00:27.7]} 31... Nd4+ {[%clk
0:00:45.4]} 32. Kd3 {[%clk 0:00:27.9]} 32... Rxc8 {[%clk 0:00:44.5]} 33. Kxd4
{[%clk 0:00:28.3]} 33... Rd8+ {[%clk 0:00:44.9]} 34. Kc3 {[%clk 0:00:27.6]}
34... b5 {[%clk 0:00:44.3]} 35. a4 {[%clk 0:00:25.6]} 35... b4+ {[%clk
0:00:42.4]} 36. Kc2 {[%clk 0:00:25.3]} 36... Rc8+ {[%clk 0:00:41]} 37. Kd3
{[%clk 0:00:17.8]} 37... Rc3+ {[%clk 0:00:40]} 38. Kd4 {[%clk 0:00:17]} 38... f6
{[%clk 0:00:35.4]} 39. f3 {[%clk 0:00:12.5]} 39... g5 {[%clk 0:00:34.5]} 40.
hxg5 {[%clk 0:00:09.4]} 40... fxg5 {[%clk 0:00:35.4]} 41. Ne4 {[%clk 0:00:07.8]}
41... Rxb3 {[%clk 0:00:25.6]} 42. Nxg5 {[%clk 0:00:07.7]} 42... Ra3 {[%clk
0:00:23.1]} 43. Ne6+ {[%clk 0:00:03.7]} 43... Kh6 {[%clk 0:00:21]} 44. Nc5
{[%clk 0:00:03.3]} 44... Rxf3 {[%clk 0:00:19.1]} 45. Nb7 {[%clk 0:00:02]} 45...
b3 {[%clk 0:00:18.6]} 0-1

[Event "*** Titled Tuesday Blitz"]
[Site "Chess.com"]
[Date "2020.10.20"]
[Round "7"]
[White "witcher8"]
[Black "Fortitudine"]
[Result "1-0"]
[WhiteElo "2427"]
[BlackElo "2288"]
[TimeControl "180+1"]
[EndTime "11:20:12 PDT"]
[Termination "witcher8 won by resignation"]

1. e4 {[%clk 0:03:00.9]} 1... c5 {[%clk 0:02:59.2]} 2. Nc3 {[%clk 0:03:00.7]}
2... d6 {[%clk 0:02:57.5]} 3. f4 {[%clk 0:03:00.4]} 3... e6 {[%clk 0:02:56.1]}
4. Nf3 {[%clk 0:03:00.3]} 4... a6 {[%clk 0:02:55.7]} 5. a4 {[%clk 0:02:57.9]}
5... Nc6 {[%clk 0:02:55.7]} 6. Bc4 {[%clk 0:02:57.6]} 6... Nf6 {[%clk
0:02:51.8]} 7. d3 {[%clk 0:02:57.4]} 7... Be7 {[%clk 0:02:51.2]} 8. O-O {[%clk
0:02:55.2]} 8... d5 {[%clk 0:02:46.6]} 9. Ba2 {[%clk 0:02:53.7]} 9... dxe4
{[%clk 0:02:46]} 10. dxe4 {[%clk 0:02:49.2]} 10... Qxd1 {[%clk 0:02:46.9]} 11.
Rxd1 {[%clk 0:02:48.4]} 11... Nb4 {[%clk 0:02:43.4]} 12. Bb3 {[%clk 0:02:46]}
12... Bd7 {[%clk 0:02:28.2]} 13. e5 {[%clk 0:02:45.2]} 13... Ng4 {[%clk
0:02:27.9]} 14. h3 {[%clk 0:02:38.5]} 14... Nh6 {[%clk 0:02:27.8]} 15. g4 {[%clk
0:02:39]} 15... Bc6 {[%clk 0:02:24.4]} 16. Kf2 {[%clk 0:02:36.6]} 16... O-O
{[%clk 0:02:00.3]} 17. Be3 {[%clk 0:02:34.2]} 17... Rfd8 {[%clk 0:01:57.2]} 18.
a5 {[%clk 0:02:07.8]} 18... c4 {[%clk 0:01:44]} 19. Bxc4 {[%clk 0:02:00.6]}
19... Nxc2 {[%clk 0:01:42.1]} 20. Rac1 {[%clk 0:01:10.9]} 20... Nxe3 {[%clk
0:01:38.4]} 21. Kxe3 {[%clk 0:01:10.9]} 21... Bc5+ {[%clk 0:01:31.1]} 22. Ke2
{[%clk 0:01:11]} 22... Bb4 {[%clk 0:01:21.1]} 23. Ng5 {[%clk 0:01:08.7]} 23...
Bxa5 {[%clk 0:01:00.7]} 24. Nce4 {[%clk 0:01:06.7]} 24... Rxd1 {[%clk
0:00:33.5]} 25. Rxd1 {[%clk 0:01:04.8]} 25... Rd8 {[%clk 0:00:23.5]} 26. Nd6
{[%clk 0:01:04.6]} 26... Bc7 {[%clk 0:00:18]} 27. Ke3 {[%clk 0:00:44.6]} 27...
Bxd6 {[%clk 0:00:17.4]} 28. exd6 {[%clk 0:00:44.8]} 28... Bd7 {[%clk 0:00:15.7]}
29. Kd4 {[%clk 0:00:41]} 29... g6 {[%clk 0:00:14.2]} 30. Bb3 {[%clk 0:00:35.4]}
30... Rc8 {[%clk 0:00:14]} 31. Ne4 {[%clk 0:00:33.9]} 31... Kg7 {[%clk 0:00:14]}
32. Rd2 {[%clk 0:00:21.8]} 32... Ng8 {[%clk 0:00:13.4]} 33. g5 {[%clk
0:00:20.8]} 33... h6 {[%clk 0:00:12]} 34. h4 {[%clk 0:00:21.1]} 34... f6 {[%clk
0:00:10.7]} 35. Rc2 {[%clk 0:00:16.6]} 35... Rxc2 {[%clk 0:00:10.2]} 36. Bxc2
{[%clk 0:00:17.5]} 36... e5+ {[%clk 0:00:07.4]} 37. fxe5 {[%clk 0:00:17.1]}
37... fxe5+ {[%clk 0:00:07.8]} 38. Kxe5 {[%clk 0:00:16.9]} 38... hxg5 {[%clk
0:00:08.5]} 39. hxg5 {[%clk 0:00:17.4]} 39... Bc6 {[%clk 0:00:06.5]} 40. Nc5
{[%clk 0:00:16.9]} 40... Kf8 {[%clk 0:00:06.3]} 41. Bxg6 {[%clk 0:00:14.1]}
41... Kg7 {[%clk 0:00:05.5]} 42. Bh5 {[%clk 0:00:12.9]} 1-0

[Event "*** Titled Tuesday Blitz"]
[Site "Chess.com"]
[Date "2020.10.20"]
[Round "7"]
[White "Chamal_Gedgafov"]
[Black "ambaixador"]
[Result "0-1"]
[WhiteElo "2162"]
[BlackElo "2311"]
[TimeControl "180+1"]
[EndTime "11:20:12 PDT"]
[Termination "ambaixador won on time"]

1. d4 {[%clk 0:03:00.9]} 1... d5 {[%clk 0:02:59.4]} 2. c4 {[%clk 0:03:00.9]}
2... e6 {[%clk 0:03:00.3]} 3. Nc3 {[%clk 0:03:00.1]} 3... Nf6 {[%clk 0:03:00.3]}
4. cxd5 {[%clk 0:03:00]} 4... exd5 {[%clk 0:02:59.6]} 5. Bg5 {[%clk 0:02:59.3]}
5... c6 {[%clk 0:02:59.9]} 6. e3 {[%clk 0:02:59.3]} 6... h6 {[%clk 0:02:59.7]}
7. Bh4 {[%clk 0:02:58.7]} 7... Be7 {[%clk 0:03:00]} 8. Bd3 {[%clk 0:02:57.9]}
8... O-O {[%clk 0:03:00.4]} 9. Qc2 {[%clk 0:02:56.1]} 9... Nbd7 {[%clk
0:02:59.8]} 10. Nf3 {[%clk 0:02:55.8]} 10... Re8 {[%clk 0:03:00.1]} 11. O-O
{[%clk 0:02:54.8]} 11... Ne4 {[%clk 0:02:57.8]} 12. Bg3 {[%clk 0:02:50.9]} 12...
Ndf6 {[%clk 0:02:50.2]} 13. Ne5 {[%clk 0:02:47.3]} 13... Nxg3 {[%clk 0:02:37]}
14. hxg3 {[%clk 0:02:44.7]} 14... Bd6 {[%clk 0:02:37.3]} 15. f4 {[%clk
0:02:35.3]} 15... Qe7 {[%clk 0:02:30.2]} 16. Rae1 {[%clk 0:02:34]} 16... c5
{[%clk 0:02:14.7]} 17. Be2 {[%clk 0:02:10.4]} 17... Bd7 {[%clk 0:01:59.6]} 18.
Bf3 {[%clk 0:02:07.5]} 18... Bc6 {[%clk 0:01:59.4]} 19. a3 {[%clk 0:01:59.8]}
19... Rac8 {[%clk 0:01:51.9]} 20. Rc1 {[%clk 0:01:35.9]} 20... Red8 {[%clk
0:01:18.5]} 21. Qf5 {[%clk 0:01:17.5]} 21... Qe6 {[%clk 0:01:04.7]} 22. Qd3
{[%clk 0:01:07.4]} 22... Nd7 {[%clk 0:00:54.1]} 23. Rfd1 {[%clk 0:00:48.4]}
23... Nb6 {[%clk 0:00:40]} 24. Bg4 {[%clk 0:00:44.2]} 24... Qe8 {[%clk
0:00:37.6]} 25. Bxc8 {[%clk 0:00:42.6]} 25... Rxc8 {[%clk 0:00:37.2]} 26. Nxc6
{[%clk 0:00:31.3]} 26... bxc6 {[%clk 0:00:32.4]} 27. Re1 {[%clk 0:00:19.1]}
27... Nc4 {[%clk 0:00:29.5]} 28. b3 {[%clk 0:00:16.5]} 28... Nxa3 {[%clk
0:00:27.2]} 29. e4 {[%clk 0:00:14.9]} 29... cxd4 {[%clk 0:00:26.4]} 30. Qxd4
{[%clk 0:00:12.6]} 30... Qf8 {[%clk 0:00:19.4]} 31. Qd3 {[%clk 0:00:12.1]} 31...
d4 {[%clk 0:00:14.5]} 32. Na4 {[%clk 0:00:09.2]} 32... Nb5 {[%clk 0:00:14.2]}
33. Rc4 {[%clk 0:00:06.2]} 33... Bb4 {[%clk 0:00:13.5]} 34. Rec1 {[%clk
0:00:05.6]} 34... Bc3 {[%clk 0:00:08.3]} 35. Nxc3 {[%clk 0:00:04.2]} 35... dxc3
{[%clk 0:00:09.2]} 36. Qe3 {[%clk 0:00:01.9]} 36... Qa3 {[%clk 0:00:06.2]} 0-1

[Event "*** Titled Tuesday Blitz"]
[Site "Chess.com"]
[Date "2020.10.20"]
[Round "7"]
[White "Smirnov_Pavel"]
[Black "kleinebeer98"]
[Result "1-0"]
[WhiteElo "2866"]
[BlackElo "2622"]
[TimeControl "180+1"]
[EndTime "11:20:13 PDT"]
[Termination "Smirnov_Pavel won on time"]

1. d4 {[%clk 0:03:00.9]} 1... h6 {[%clk 0:02:59.9]} 2. e4 {[%clk 0:03:00]} 2...
g5 {[%clk 0:03:00.4]} 3. Nc3 {[%clk 0:02:59.3]} 3... Bg7 {[%clk 0:03:00.9]} 4.
g3 {[%clk 0:02:59.8]} 4... c5 {[%clk 0:03:00.3]} 5. dxc5 {[%clk 0:02:58.6]} 5...
Nc6 {[%clk 0:03:00.7]} 6. h4 {[%clk 0:02:57.8]} 6... gxh4 {[%clk 0:03:00.3]} 7.
Rxh4 {[%clk 0:02:58.7]} 7... Qa5 {[%clk 0:03:00.4]} 8. Bd2 {[%clk 0:02:58.4]}
8... Qxc5 {[%clk 0:02:59.2]} 9. Nf3 {[%clk 0:02:59.3]} 9... Nf6 {[%clk
0:02:58.4]} 10. Bd3 {[%clk 0:02:54.7]} 10... d6 {[%clk 0:02:57.3]} 11. Qe2
{[%clk 0:02:54]} 11... Bg4 {[%clk 0:02:52.1]} 12. Rxg4 {[%clk 0:02:28.3]} 12...
Nxg4 {[%clk 0:02:53]} 13. Nd5 {[%clk 0:02:28.7]} 13... Nce5 {[%clk 0:02:44.7]}
14. Nxe5 {[%clk 0:02:02.4]} 14... Nxe5 {[%clk 0:02:45.6]} 15. Bb5+ {[%clk
0:02:02.3]} 15... Kf8 {[%clk 0:02:45.2]} 16. Be3 {[%clk 0:01:59]} 16... Nf3+
{[%clk 0:02:29.9]} 17. Kf1 {[%clk 0:01:28.2]} 17... Nd4 {[%clk 0:02:22.4]} 18.
Bxd4 {[%clk 0:01:22.5]} 18... Qxd4 {[%clk 0:02:19.7]} 19. c3 {[%clk 0:01:20.7]}
19... Qc5 {[%clk 0:02:12.3]} 20. Rd1 {[%clk 0:01:18.4]} 20... h5 {[%clk
0:02:06]} 21. Nf4 {[%clk 0:01:07]} 21... h4 {[%clk 0:02:01.6]} 22. Rd5 {[%clk
0:01:06.7]} 22... Qc8 {[%clk 0:02:00.4]} 23. Rf5 {[%clk 0:01:04.2]} 23... Bf6
{[%clk 0:01:44]} 24. Nh5 {[%clk 0:00:53]} 24... hxg3 {[%clk 0:01:42.4]} 25. fxg3
{[%clk 0:00:51]} 25... Qd8 {[%clk 0:01:27]} 26. Qf3 {[%clk 0:00:43.4]} 26... Rh6
{[%clk 0:01:11.7]} 27. g4 {[%clk 0:00:43.2]} 27... Rg6 {[%clk 0:00:46.8]} 28.
Nf4 {[%clk 0:00:41.3]} 28... Rh6 {[%clk 0:00:45]} 29. g5 {[%clk 0:00:40.3]}
29... Rh8 {[%clk 0:00:31.6]} 30. gxf6 {[%clk 0:00:35.7]} 30... exf6 {[%clk
0:00:23]} 31. Nd5 {[%clk 0:00:30.9]} 31... Rh6 {[%clk 0:00:22.5]} 32. Nxf6
{[%clk 0:00:29.9]} 32... Qe7 {[%clk 0:00:16.7]} 33. Bc4 {[%clk 0:00:29.4]} 33...
Rc8 {[%clk 0:00:14]} 34. Ng4 {[%clk 0:00:26.9]} 34... Rh7 {[%clk 0:00:10.7]} 35.
Bd5 {[%clk 0:00:26.4]} 35... Rg7 {[%clk 0:00:08.8]} 36. Nh6 {[%clk 0:00:25.4]}
36... Rc7 {[%clk 0:00:06.5]} 37. Ke2 {[%clk 0:00:22.3]} 37... Ke8 {[%clk
0:00:05.3]} 38. Kd3 {[%clk 0:00:20.9]} 38... Qd7 {[%clk 0:00:03.3]} 39. c4
{[%clk 0:00:17.3]} 39... Kd8 {[%clk 0:00:02.6]} 40. Nxf7+ {[%clk 0:00:16.2]}
40... Kc8 {[%clk 0:00:02]} 41. Ng5 {[%clk 0:00:13.8]} 1-0

[Event "*** Titled Tuesday Blitz"]
[Site "Chess.com"]
[Date "2020.10.20"]
[Round "7"]
[White "Alexander_Moskalenko"]
[Black "Jumbo"]
[Result "1-0"]
[WhiteElo "2903"]
[BlackElo "2779"]
[TimeControl "180+1"]
[EndTime "11:20:14 PDT"]
[Termination "Alexander_Moskalenko won by resignation"]

1. c4 {[%clk 0:03:00.9]} 1... e5 {[%clk 0:02:59.5]} 2. Nc3 {[%clk 0:03:00]} 2...
Nf6 {[%clk 0:02:59.2]} 3. Nf3 {[%clk 0:02:59.3]} 3... Nc6 {[%clk 0:02:59.6]} 4.
d3 {[%clk 0:02:57.8]} 4... d5 {[%clk 0:02:54.5]} 5. cxd5 {[%clk 0:02:58.7]} 5...
Nxd5 {[%clk 0:02:55.2]} 6. Bd2 {[%clk 0:02:59.3]} 6... Nb6 {[%clk 0:02:51.3]} 7.
g3 {[%clk 0:02:59.3]} 7... Be7 {[%clk 0:02:51]} 8. Bg2 {[%clk 0:02:58.8]} 8...
O-O {[%clk 0:02:51.5]} 9. O-O {[%clk 0:02:59.7]} 9... Be6 {[%clk 0:02:51.7]} 10.
Rc1 {[%clk 0:02:55]} 10... f5 {[%clk 0:02:44.4]} 11. a3 {[%clk 0:02:44.8]} 11...
a5 {[%clk 0:02:43.6]} 12. Be3 {[%clk 0:02:21.5]} 12... a4 {[%clk 0:02:32]} 13.
Nd2 {[%clk 0:02:14.2]} 13... Nd5 {[%clk 0:01:52.8]} 14. Nxd5 {[%clk 0:02:12.8]}
14... Bxd5 {[%clk 0:01:52.3]} 15. Qc2 {[%clk 0:02:04.8]} 15... Kh8 {[%clk
0:01:26.8]} 16. Bxd5 {[%clk 0:01:53.9]} 16... Qxd5 {[%clk 0:01:27.7]} 17. Qc4
{[%clk 0:01:54.5]} 17... Ra5 {[%clk 0:01:23.4]} 18. Qxd5 {[%clk 0:01:44.1]}
18... Rxd5 {[%clk 0:01:24.3]} 19. Rc4 {[%clk 0:01:44.3]} 19... Rb5 {[%clk
0:01:15]} 20. Rxa4 {[%clk 0:01:40.3]} 20... Rxb2 {[%clk 0:01:12.5]} 21. Rb1
{[%clk 0:01:39.5]} 21... Rxb1+ {[%clk 0:01:01]} 22. Nxb1 {[%clk 0:01:40.4]}
22... Bd6 {[%clk 0:00:52.8]} 23. f4 {[%clk 0:01:39.8]} 23... Re8 {[%clk
0:00:51]} 24. Kf2 {[%clk 0:01:39.4]} 24... Kg8 {[%clk 0:00:47.5]} 25. Nc3 {[%clk
0:01:36.3]} 25... Kf7 {[%clk 0:00:46.3]} 26. Nb5 {[%clk 0:01:36.1]} 26... exf4
{[%clk 0:00:35.6]} 27. Nxd6+ {[%clk 0:01:34.7]} 27... cxd6 {[%clk 0:00:35.3]}
28. gxf4 {[%clk 0:01:25.9]} 28... Ke6 {[%clk 0:00:34.4]} 29. Bd2 {[%clk
0:01:25.1]} 29... Kd5 {[%clk 0:00:31.7]} 30. Bc3 {[%clk 0:01:17.5]} 30... g6
{[%clk 0:00:24]} 31. Kf3 {[%clk 0:01:17.7]} 31... Ke6 {[%clk 0:00:18.2]} 32. e4
{[%clk 0:01:17.4]} 32... Rf8 {[%clk 0:00:18.1]} 33. h4 {[%clk 0:01:10.8]} 33...
d5 {[%clk 0:00:18.1]} 34. Ke3 {[%clk 0:00:48.4]} 34... Rd8 {[%clk 0:00:16.5]}
35. Bb2 {[%clk 0:00:35.5]} 35... Re8 {[%clk 0:00:15.3]} 36. Kf3 {[%clk
0:00:32.9]} 36... Kd6 {[%clk 0:00:15.5]} 37. Bf6 {[%clk 0:00:29.6]} 37... Kc5
{[%clk 0:00:15]} 38. exd5 {[%clk 0:00:22.6]} 38... Kb5 {[%clk 0:00:11.6]} 39.
Rc4 {[%clk 0:00:22.7]} 39... Nb8 {[%clk 0:00:03.1]} 40. Rc7 {[%clk 0:00:21.1]}
40... b6 {[%clk 0:00:02.9]} 41. d6 {[%clk 0:00:18.2]} 41... Re6 {[%clk
0:00:01.7]} 42. Be5 {[%clk 0:00:16.5]} 1-0